Cogmind - Beta 15 @@@ ROGUE MODE // 2025.05.25 @ 16:55:24 Player: Nebulae Result: Destroyed by D-53 Grenadier with Mini Grenade Launcher Performance ------------- Evolutions (0) 0 Regions Visited (2) 400 Robots Destroyed (21) 105 Value Destroyed (535) 535 Prototype IDs (1) 20 Alien Tech Used (0) 0 Bonus (0) 0 TOTAL SCORE: 1060 Bonus ------- None Cogmind --------- Core Integrity 0/250 Matter 267/300 Energy 68/100 System Corruption 1% Temperature Cool (0) Movement Core (250) Ox4 Location -10/Mines Parts ------- > --- POWER (1) -------- (None) > --- PROPULSION (2) --- (None) > --- UTILITY (2) ------ Medium Storage Unit Visual Processing Unit > --- WEAPON (2) ------- Improved Assault Rifle > --- INVENTORY (10) --- Light Nuclear Core Aluminum Leg Large Storage Unit Weight Redist. System Transport Network Coupler Hardened Medium Armor Plating Improved Assault Rifle Improved Assault Rifle Peak State ------------ > --- POWER ------------ Light Ion Engine > --- PROPULSION ------- Aluminum Leg Carbon-fiber Leg > --- UTILITY ---------- Medium Storage Unit Visual Processing Unit > --- WEAPON ----------- Improved Assault Rifle Improved Assault Rifle > --- INVENTORY -------- Light Nuclear Core Aluminum Leg Large Storage Unit Weight Redist. System Transport Network Coupler Hardened Medium Armor Plating EM Pulse Cannon Improved Assault Rifle Improved Assault Rifle Grenade Launcher [Rating: 16] Favorites ----------- Power Light Ion Engine Engine Light Ion Engine Propulsion Aluminum Leg Leg Aluminum Leg Utility Medium Storage Unit Device Weight Redist. System Storage Medium Storage Unit Processor Visual Processing Unit Weapon Improved Assault Rifle Energy Gun Medium Laser Energy Cannon EM Pulse Cannon Ballistic Gun Improved Assault Rifle Launcher Grenade Launcher Build | -11 -10 -10 ------- Run | Yrd Mat Min Slots Evolved . | . . . Power . | . . . Propulsion . | . . . Utility . | . . . Weapon . | . . . Parts Attached 25 | 6 17 2 Power 2 | 1 1 . Engine 2 | 1 1 . Core . | . . . Reactor . | . . . Propulsion 10 | 2 7 1 Treads . | . . . Leg 10 | 2 7 1 Wheel . | . . . Hover . | . . . Flight . | . . . Utility 4 | 1 3 . Device 1 | . 1 . Storage 2 | 1 1 . Processor 1 | . 1 . Hackware . | . . . Protection . | . . . Artifact . | . . . Weapon 9 | 2 6 1 Energy Gun 1 | 1 . . Energy Cannon 1 | . . 1 Ballistic Gun 5 | 1 4 . Ballistic Cannon . | . . . Launcher 2 | . 2 . Special Weapon . | . . . Impact Weapon . | . . . Slashing Weapon . | . . . Piercing Weapon . | . . . Special Melee Weapon . | . . . Unidentified Prototypes 1 | . 1 . Parts Lost 6 | . . 6 Power 1 | . . 1 Propulsion 2 | . . 2 Utility . | . . . Weapon 3 | . . 3 Highest Loss Streak 6 | . . 6 To Critical Strikes . | . . . Average Backups 8 | 1 8 9 Power 1 | . 1 1 Propulsion 1 | . 1 1 Utility 2 | . 2 4 Weapon 3 | . 3 3 Tool/Special . | . . . Unused Backups 14 | 2 5 7 Power 1 | . . 1 Propulsion 6 | 2 2 2 Utility 4 | . . 4 Weapon 3 | . 3 . Tool/Special . | . . . Average Slot Usage (%) 95 | . 94 98 Engine 13 | . 14 13 Leg 27 | . 28 26 Device 1 | . 2 . Storage 14 | . 14 14 Processor 8 | . 6 14 Energy Gun 3 | . 4 . Energy Cannon 2 | . . 11 Ballistic Gun 19 | . 23 7 Launcher 2 | . . 9 Peak Build Rating 16 | 6 13 16 Average Rating 11 | 5 11 14 On Entrance 6 | . 6 13 Naked Turns . | . . . Heaviest Build 26 | 13 26 22 Greatest Support 26 | 20 26 25 Greatest Overweight (x) 1 | . 1 . Average Overweight (x) . | . . . Largest Inventory Capacity 10 | 8 10 10 Average Capacity 9 | 7 9 10 Most Carried 10 | 4 10 10 Average Carried 8 | 2 8 9 Final Capacity 10 | 8 10 10 Final Carried 10 | 4 10 8 Class Distribution -------------------- 100% | Mutant Dominant Class ---------------- Mutant | -10/Materials Mutant | -10/Mines Resources | -11 -10 -10 ----------- Run | Yrd Mat Min Matter Collected 755 | 225 455 75 Remotely . | . . . Salvage Created 689 | . 648 41 Parts 41 | . 38 3 Haulers Intercepted 2 | . 2 . Recyclers Shooed . | . . . Parts Field Recycled . | . . . Retrieved Matter . | . . . Parts Self-Destructed . | . . . Prevented . | . . . Kills | -11 -10 -10 ------- Run | Yrd Mat Min Combat Hostiles Destroyed 15 | . 14 1 Guns 8 | . 8 . Cannons 1 | . . 1 AOE 6 | . 6 . Classes Destroyed 5 | . 5 . Hauler 2 | . 2 . Recycler 1 | . 1 . Watcher 3 | . 3 . Swarmer 3 | . 3 . Grunt 12 | . 11 1 Best Kill Streak 7 | . 7 1 Combat Bots Only 5 | . 5 1 Max Kills in Single Turn 4 | . 4 1 Gunslinging . | . . . Exploded 2 | . 2 . Melee . | . . . Uniques/NPCs Destroyed . | . . . Combat | -11 -10 -10 -------- Run | Yrd Mat Min Hostile Shots Fired 74 | . 58 16 Missed 23 | . 20 3 Hits 51 | . 38 13 Projectile 51 | . 38 13 AOE 18 | . . 18 Critical Strikes 1 | . 1 . Damage Taken 1230 | . 491 739 Core 294 | . 92 202 Absorbed by Shields . | . . . Core Remaining (%) 100 | 100 . . Volleys Fired 63 | . 55 8 Largest 2 | . 2 2 Hottest 93 | . 73 93 Shots Fired 121 | . 109 12 Gun 109 | . 103 6 Cannon 5 | . . 5 Launcher 7 | . 6 1 Special . | . . . Kinetic 83 | . 77 6 Thermal 26 | . 26 . Explosive 7 | . 6 1 Electromagnetic 5 | . . 5 Robot Hit Streak 6 | . 6 4 Robot Miss Streak 5 | . 5 1 Penetration Max . | . . . Secondary Targets 1 | . 1 . Max Gunslinging Chain 1 | . 1 . Shots Hit Robots 61 | . 54 7 Core Hits 39 | . 36 3 Critical Kills . | . . . Critical Parts Destroyed . | . . . Critical Strikes 2 | . 2 . Burn 2 | . 2 . Melee Attacks . | . . . Impact . | . . . Slashing . | . . . Piercing . | . . . Sneak Attacks . | . . . Combat Hostiles . | . . . Follow-up Attacks . | . . . Damage Inflicted 1308 | . 1150 158 Guns 848 | . 782 66 Cannons 71 | . . 71 Explosions 389 | . 368 21 Melee . | . . . Ramming . | . . . Kinetic 672 | . 606 66 Thermal 176 | . 176 . Explosive 389 | . 368 21 Electromagnetic 71 | . . 71 Impact . | . . . Slashing . | . . . Piercing . | . . . Highest Corruption 1 | . 1 1 Average Corruption 1 | . 1 1 Corruption Purged . | . . . Corruption Blocked . | . . . Effects 3 | . 1 2 Matter Fused 2 | . . 2 Heat Flow Errors 1 | . 1 . Overload Shots . | . . . Overflow Damage 9 | . 9 . Projectiles . | . . . Explosions 9 | . 9 . Melee . | . . . Knockbacks . | . . . Impact . | . . . Kinetic . | . . . Secondary . | . . . Self-Inflicted Damage 21 | . 21 . Shots 1 | . 1 . Rammed . | . . . Targets Rammed . | . . . Kicked . | . . . Crushed . | . . . Highest Temperature 204 | . 204 44 Average Temperature 56 | . 61 18 Received Heat Transfer 207 | . 207 . Siege Activations . | . . . Martial Activations . | . . . Shielding Activations . | . . . Robots Disrupted . | . . . Combat Hostiles . | . . . Robots Corrupted . | . . . Combat Hostiles . | . . . Parts Fried . | . . . Impact Corruptions . | . . . Robots Melted . | . . . Combat Hostiles . | . . . Parts Melted 1 | . 1 . Heat Transferred 666 | . 666 . Parts Sabotaged . | . . . Parts Stolen . | . . . Parts Stripped . | . . . Power Chain Reactions . | . . . Alert | -11 -10 -10 ------- Run | Yrd Mat Min Maximum Alert Level . | . . . Low Security (%) 100 | 100 100 100 Level 1 . | . . . Level 2 . | . . . Level 3 . | . . . Level 4 . | . . . Level 5 . | . . . High Security . | . . . Max Security . | . . . Peak Influence 187 | . 187 67 Initial 67 | . . 67 Average 42 | . 49 31 Influence Increases 444 | . 423 21 Destroy 0b10 Robot/C 300 | . 280 20 Destroy 0b10 Robot/NC 30 | . 30 . Destroy Leader 60 | . 60 . Successful Hack 10 | . 10 . Destroy Structure 44 | . 43 1 Influence Decreases 444 | . 248 196 Entered New Map 108 | . . 108 Time Decay 335 | . 248 87 Lost Part 1 | . . 1 Squads Dispatched 3 | . 2 1 Investigation 2 | . 1 1 Extermination . | . . . Reinforcement 1 | . 1 . Assault . | . . . Garrison . | . . . Intercept . | . . . Searches Triggered . | . . . Construction Impeded . | . . . Haulers Reinforced . | . . . Active Scanning Responses . | . . . Cargo Convoy Interrupts . | . . . Stealth | -11 -10 -10 --------- Run | Yrd Mat Min Distress Signals 1 | . 1 . Communications Jammed . | . . . Distress Signals . | . . . Times Spotted 26 | . 21 5 Peak Tracking Total 6 | . 6 3 Tactical Retreats . | . . . Traps | -11 -10 -10 ------- Run | Yrd Mat Min Traps Triggered 2 | . 2 . Indirectly . | . . . Trap Hack Attempts . | . . . Triggered . | . . . Disarmed . | . . . Reprogrammed . | . . . Reused . | . . . Traps Extracted . | . . . Installed . | . . . Triggered . | . . . Machines | -11 -10 -10 ---------- Run | Yrd Mat Min Machines Disabled . | . . . Max in Single Turn . | . . . Machines Repaired . | . . . Machines Dismantled . | . . . Machines Sabotaged . | . . . Overloaded Fab Kills . | . . . Hacking | -11 -10 -10 --------- Run | Yrd Mat Min Machines Accessed 4 | . 3 1 Terminals 2 | . 2 . Fabricators . | . . . Repair Stations . | . . . Recycling Units 1 | . 1 . Scanalyzers . | . . . Garrison Access . | . . . Total Hacks 9 | . 8 1 Successful 5 | . 4 1 Failed 4 | . 4 . Catastrophic . | . . . Database Lockouts . | . . . Manual 6 | . 6 . Terminals 6 | . 6 . Fabricators . | . . . Repair Stations . | . . . Recycling Units 2 | . 2 . Scanalyzers . | . . . Garrison Access . | . . . Terminal Hacks 3 | . 2 1 Record 1 | . 1 . Open Door 1 | . . 1 Branch Access Points 1 | . 1 . Fabricator Hacks . | . . . Repair Station Hacks . | . . . Recycling Unit Hacks 1 | . 1 . Retrieve Components 1 | . 1 . Scanalyzer . | . . . Garrison Access Hacks . | . . . Unauthorized Hacks 1 | . 1 . Terminals . | . . . Fabricators . | . . . Repair Stations . | . . . Recycling Units 1 | . 1 . Reject 1 | . 1 . Scanalyzers . | . . . Garrison Access . | . . . Data Cores Recovered . | . . . Used . | . . . Hacking Detections 2 | . 2 . Full Trace Events 1 | . 1 . Feedback Events . | . . . Feedback Blocked . | . . . Robot Schematics Acquired . | . . . Robots Built . | . . . Authchips . | . . . Time . | . . . Total Robot Build Rating . | . . . Part Schematics Acquired . | . . . Parts Built . | . . . Authchips . | . . . Time . | . . . Total Part Build Rating . | . . . Parts Repaired . | . . . Time . | . . . Parts Recycled . | . . . Recycled Matter . | . . . Retrieved Matter . | . . . Retrieved Components . | . . . Parts Scanalyzed . | . . . Part Schematics Acquired . | . . . Parts Damaged . | . . . Bothacking | -11 -10 -10 ------------ Run | Yrd Mat Min Used RIF Installer . | . . . Robots Hacked . | . . . Non-combat . | . . . Combat . | . . . Robot Hacks Applied . | . . . Relay Couplers Released . | . . . Fabnet Peak Effective % . | . . . Robots Rewired . | . . . Allies Hacked . | . . . Hacks Repelled . | . . . Allies | -11 -10 -10 -------- Run | Yrd Mat Min Total Allies . | . . . Largest Group . | . . . Highest-Rated Group . | . . . Highest-Rated Ally . | . . . Total Orders . | . . . Ally Attacks . | . . . Total Damage . | . . . Kills . | . . . Allies Corrupted . | . . . Allies Melted . | . . . Intel | -11 -10 -10 ------- Run | Yrd Mat Min Active Infowar (turns) 616 | . 391 225 Optics 616 | . 391 225 Robot Analysis Total . | . . . Derelict Logs Recovered . | . . . Drone Launches . | . . . Drone Recoveries . | . . . Exploration | -11 -10 -10 ------------- Run | Yrd Mat Min Turns Passed 1152 | 89 838 225 Spaces Moved 739 | 62 513 164 Core 1 | 1 . . Treads . | . . . Legs 738 | 61 513 164 Wheels . | . . . Hover . | . . . Flight . | . . . Fastest Speed 50 | 50 120 120 Average Speed 121 | 118 122 120 Slowest Speed 190 | 120 190 120 Overloaded Moves . | . . . Propulsion Burnouts . | . . . Robots Hopped . | . . . Potential Cave-ins . | . . . Cave-ins Triggered . | . . . Exploration Rate (%) 41 | 4 76 45 Regions Visited 2 Branch Regions 1 Pre-discovered Areas . | . . . Known Exits Taken 1 | . 1 . Unknown Exits Taken 1 | 1 . . Scrap Searched 3 | . . 3 Spaces Dug . | . . . Terrain Destroyed 41 | . 38 3 Melee . | . . . Projectile . | . . . AOE 41 | . 38 3 Terrain Rammed . | . . . Walls Destroyed . | . . . Machines Disabled . | . . . Actions | -11 -10 -10 --------- Run | Yrd Mat Min Total 878 | 75 621 182 Wait . | . . . Move 737 | 61 512 164 Hop . | . . . Pick Up 24 | 6 16 2 Fast Attach 7 | 6 1 . Attach 2 | . . 2 Detach . | . . . Swap 22 | . 19 3 Drop 23 | 2 18 3 Fire 63 | . 55 8 Melee . | . . . Ram . | . . . Kick . | . . . Crush . | . . . Escape Stasis . | . . . Rewire . | . . . Trap . | . . . Miscellaneous . | . . . Route ------- -11/Scrapyard -10/Materials (discovered 4 exits: [*Mat x2] / *Min x2) -10/Mines History --------- Turn | Location | Event 9 | -11/Scrapyard | Discovered new exit (range 15) 90 | -11/Scrapyard | Entered Materials 325 | -10/Materials | Build established: Mutant 445 | -10/Materials | Discovered new exit (range 5) 621 | -10/Materials | Discovered new exit (range 18) 886 | -10/Materials | Identified exit to Mines 928 | -10/Materials | Entered Mines 937 | -10/Mines | Met a Derelict shopkeep closing up shop 1117 | -10/Mines | Assembled infested the area 1122 | -10/Mines | Assisted by a Guerilla fighting off Assembled 1141 | -10/Mines | Core integrity fell below 50% 1152 | -10/Mines | Core integrity fell below 20% 1153 | -10/Mines | Destroyed by D-53 Grenadier with Mini Grenade Launcher Last Messages --------------- 01132_ K-01 Serf collects debris. 01133_ 8Z-MSM(h) destroyed. 01133_ K-01 Serf collects debris. 01136_ The unstable cave ceiling collapses. 01136_ K-01 Serf collects debris. 01140_ Grenade Launcher destroyed. 01141_ The unstable cave ceiling collapses. 01142_ Lgt. Ion Engine destroyed. 01142_ K-01 Serf collects debris. 01144_ The unstable cave ceiling collapses. 01144_ EM Pulse Cannon destroyed. 01146_ K-01 Serf collects debris. 01148_ Carbon-fiber Leg destroyed. 01148_ Aluminum Leg destroyed. 01149_ The unstable cave ceiling collapses. 01150_ K-01 Serf collects debris. 01150_ Imp. Assault Rifle destroyed. 01151_ K-01 Serf collects debris. 01152_ The unstable cave ceiling collapses. 01153_ K-01 Serf collects debris. Map ----- +----------------------------------------------------+ | ?????????????????????????????????????????????# #?# | | ?????????????????????????????????????????????# ### | | ?????????????????????????????????????????????# | | ?????????????????????????????????????????????##### | | ?????????????????????????????????????????????????? | | ?????????????????????????????????????????????????# | | ????????????????????????????????????????????????## | | ????????????????????????????????????????????????# | | ????????????????????????????????????????????????# | | ????????????????????????????????????????????##?## | | ???????????????????????????????????????????## ## | | ???????????????????????????????????????????# | | ???????????????????????????????????????????## | | ???????????????????????????????#????????????# ## | | ?????????????????????????????? #????????????# ?## | | ?????????????????????????????# #????######### ### | | ???????????????????????????? #????# ## | | ??????????????????????####?# ?????# ######## | | ?????????????????????## ### #?????# #?????# | | ????????????????????## # ##????# #?????# | | ????????????????##### ###### ######## # | | ???????????????## ####? | | ????????# ##### k r #???? | | ???????# k ### #???? | | ???????# # ##?# #???? | | ???????# @ #??# #???? | | ??????# ### #??# #???? | | ?????? #### ##?# ##### | | ??????? ## ## # ### | | ??????? ?????######??## "%" | | ??????????????????????#### # % "### | | ?????????????????????????# = ;;## #?? | | ?????????????????????????# dd ###### #?? | | ?????????????????????????## #????## ##?? | | ??????????????????????????# =k ##?????# ##??? | | ??????????????????????????## ##??????# ???? | | ?????????????????????????### ###???????# #???? | | ??????????????????????#### #?????????# #???? | | ?????????????????????## #????????? ???? | | ?????????????????????# ##?????????"" ???? | | ?????????????????????# ####??????????"" ???? | | ?????????????????????## ##?????????????"" ???? | | ??????????????????????#######?????????????? ???? | | ????????????????????????????????????????????? #??? | | ????????????????????????????????????????????? #??? | | ?????????????????????????????????????????????##??? | | ?????????????????????????????????????????????????? | | ?????????????????????????????????????????????????? | | ?????????????????????????????????????????????????? | | | +----------------------------------------------------+ Best States ------------- Heat Dissipation 25 Energy Generation 10 Energy Capacity 250 Matter Stores 300 Matter Capacity 300 Sight Range 18 Terrain Scan Density 10 Additional Mass Support 6 Evasion (%) 55 Item Schematics ----------------- None Robot Schematics ------------------ None Fabricated ------------ Nothing Repaired ---------- Nothing Alien Tech Used ----------------- None Achievements -------------- None Challenges ------------ None Game ------ Seed CompactPiercingExpander Manual? 0 Play Time 00:27:34 Cumulative 19.1 hours Start 2025.05.25 @ 16:19:18 End 2025.05.25 @ 16:55:24 Sessions 1 Manual Loads 0 Difficulty Rogue Special Mode None Game No. 15 Rogue 15 Adventurer 0 Explorer 0 Win Type - Total 0 Types 0/0/0/0/0/0/0/0/0/0 Lore% 13 Gallery% 15 Achievement% 15 Wizard Run 0 Options --------- Layout 0 ASCII 0 Keyboard 0 Movement Arrows Keybinds 0 Fullscreen 1 Font 18/SmallcapsGlow Map View 76x50 Zoom Use 0% Tactical HUD 1 Map Filters NONE Filters NONE Steam X RUN: e21e4d02-c27d-4619-baff-f545bb7f4099